fUSD/lending_fUSD_20241003
["ID","MTS","AMOUNT","RATE_DAILY","PERIOD"]
[339789102,1727987498488,-272.92873,0.00034246,7]
[339789103,1727987498498,-151.0,0.00034246,7]
[339789104,1727987498506,-272.92873,0.00034246,7]
[339789105,1727987498515,-250.405601,0.00034246,7]
[339789106,1727987498525,-151.0,0.00034246,7]
[339789107,1727987498535,-151.0,0.00034246,7]
[339789108,1727987498544,-151.0,0.00034246,7]
[339789109,1727987498554,-1830.04,0.00034246,120]
[339789110,1727987498563,-500.0,0.00034246,120]
[339789111,1727987498572,-151.0,0.00034246,7]
[339789112,1727987498582,-1465.14,0.00034246,120]
[339789113,1727987498591,-731.74,0.00034246,120]
[339789114,1727987498600,-500.0,0.00034246,120]
[339789115,1727987498610,-150.0,0.00034246,120]
[339789116,1727987498619,-500.0,0.00034246,120]
[339789117,1727987498629,-500.0,0.00034246,120]
[339789118,1727987498638,-500.0,0.00034246,120]
[339789119,1727987498647,-1375.31,0.00034246,120]
[339789120,1727987498657,-668.57,0.00034246,120]
[339789121,1727987498666,-500.0,0.00034246,120]
[339789122,1727987498676,-520.17209721,0.00034246,120]
[339789123,1727987498685,-500.0,0.00034246,120]
[339789124,1727987498694,-1062.68,0.00034246,120]
[339789125,1727987498704,-500.0,0.00034246,120]
[339789126,1727987498713,-1108.65,0.00034246,120]
[339789127,1727987498722,-1917.75,0.00034246,120]
[339789128,1727987498731,-1239.66,0.00034246,120]
[339789129,1727987498740,-162.493315,0.00034246,7]
[339789130,1727987498749,-749.5,0.00034246,120]
[339789131,1727987498758,-162.493315,0.00034246,7]
[339789132,1727987498767,-1219.3,0.00034246,120]
[339789133,1727987498777,-1706.35,0.00034246,120]
[339789134,1727987498787,-500.0,0.00034246,120]
[339789135,1727987498796,-1816.28,0.00034246,120]
[339789136,1727987498806,-172.725409,0.00034246,7]
[339789137,1727987498815,-608.59,0.00034246,120]
[339789138,1727987498824,-172.725409,0.00034246,7]
[339789139,1727987498832,-500.0,0.00034246,120]
[339789140,1727987498842,-500.0,0.00034246,120]
[339789141,1727987498855,-500.0,0.00034246,120]
[339789142,1727987498864,-500.0,0.00034246,120]
[339789143,1727987498873,-688.2,0.00034246,120]
[339789144,1727987498883,-818.32,0.00034246,120]
[339789145,1727987498893,-500.0,0.00034246,120]
[339789146,1727987498903,-1382.2645,0.00034246,7]
[339789147,1727987498915,-212.219392,0.00034246,7]
[339789148,1727987498933,-500.0,0.00034246,120]
[339789149,1727987498944,-2173.75,0.00034246,120]
[339789150,1727987498954,-212.219392,0.00034246,7]
[339789151,1727987498963,-721.06,0.00034246,120]
[339789152,1727987498972,-2649.5,0.00034246,120]
[339789153,1727987498981,-500.0,0.00034246,120]
[339789154,1727987498991,-500.0,0.00034246,120]
[339789155,1727987499001,-500.0,0.00034246,120]
[339789156,1727987499010,-500.0,0.00034246,120]
[339789157,1727987499020,-500.0,0.00034246,120]
[339789158,1727987499030,-500.0,0.00034246,120]
[339789159,1727987499039,-952.32,0.00034246,120]
[339789160,1727987499048,-500.0,0.00034246,15]
[339789161,1727987499057,-508.75,0.00034246,120]
[339789162,1727987499067,-500.0,0.00034246,120]
[339789163,1727987499075,-2782.16,0.00034246,120]
[339789164,1727987499085,-500.0,0.00034246,120]
[339789165,1727987499094,-500.0,0.00034246,120]
[339789166,1727987499104,-604.60373289,0.00034246,120]
[339789167,1727987499114,-500.0,0.00034246,120]
[339789168,1727987499124,-799.66,0.00034246,120]
[339789169,1727987499133,-500.0,0.00034246,120]
[339789170,1727987499143,-528.54,0.00034246,120]
[339789171,1727987499153,-500.0,0.00034246,120]
[339789172,1727987499165,-500.0,0.00034246,120]
[339789173,1727987499174,-1116.48,0.00034246,120]
[339789174,1727987499184,-500.0,0.00034246,120]
[339789175,1727987499193,-500.0,0.00034246,120]
[339789176,1727987499203,-500.0,0.00034246,120]
[339789177,1727987499213,-500.0,0.00034246,120]
[339789178,1727987499224,-500.0,0.00034246,120]
[339789179,1727987499234,-667.6,0.00034246,120]
[339789180,1727987499243,-516.86,0.00034246,120]
[339789181,1727987499254,-500.0,0.00034246,120]
[339789182,1727987499264,-577.36,0.00034246,120]
[339789183,1727987499273,-448.340669,0.00034246,7]
[339789184,1727987499283,-151.0,0.00034246,7]
[339789185,1727987499293,-500.0,0.00034246,120]
[339789186,1727987499302,-448.340669,0.00034246,7]
[339789187,1727987499311,-2275.0,0.00034246,120]
[339789188,1727987499322,-1181.76,0.00034246,120]
[339789189,1727987499332,-1059.01,0.00034246,120]
[339789190,1727987499342,-500.0,0.00034246,120]
[339789191,1727987499351,-678.32,0.00034246,120]
[339789192,1727987499361,-316.28097,0.00034246,7]
[339789193,1727987499370,-500.0,0.00034246,120]
[339789194,1727987499380,-500.0,0.00034246,120]
[339789195,1727987499389,-908.96,0.00034246,120]
[339789196,1727987499399,-806.47,0.00034246,120]
[339789197,1727987499408,-316.28097,0.00034246,7]
[339789198,1727987499418,-500.0,0.00034246,120]
[339789199,1727987499427,-181.278868,0.00034246,7]
[339789200,1727987499437,-1850.2,0.00034246,120]
[339789201,1727987499447,-500.0,0.00034246,120]
[339789202,1727987499456,-181.278868,0.00034246,7]
[339789203,1727987499466,-500.0,0.00034246,120]
[339789204,1727987499475,-227.38264668,0.00034246,120]
[339789205,1727987499485,-500.0,0.00034246,120]
[339789206,1727987499494,-532.65,0.00034246,120]
[339789207,1727987499504,-500.0,0.00034246,120]
[339789208,1727987499513,-500.0,0.00034246,120]
[339789209,1727987499523,-500.0,0.00034246,120]
[339789210,1727987499532,-500.0,0.00034246,120]
[339789211,1727987499542,-951.98,0.00034246,120]
[339789212,1727987499551,-3113.1,0.00034246,120]
[339789213,1727987499561,-500.0,0.00034246,120]
[339789214,1727987499570,-952.18,0.00034246,120]
[339789215,1727987499580,-1578.27,0.00034246,120]
[339789216,1727987499589,-799.85,0.00034246,120]
[339789217,1727987499599,-500.0,0.00034246,120]
[339789218,1727987499608,-708.6,0.00034246,120]
[339789219,1727987499617,-584.82,0.00034246,120]
[339789220,1727987499627,-560.83,0.00034246,120]
[339789221,1727987499637,-500.0,0.00034246,120]
[339789222,1727987499646,-610.78,0.00034246,120]
[339789223,1727987499655,-1249.01,0.00034246,120]
[339789224,1727987499666,-500.0,0.00034246,120]
[339789225,1727987499675,-500.0,0.00034246,120]
[339789226,1727987499685,-500.0,0.00034246,120]
[339789227,1727987499694,-151.0,0.00034246,7]
[339789228,1727987499704,-500.0,0.00034246,120]
[339789229,1727987499713,-1225.26,0.00034246,120]
[339789230,1727987499723,-500.0,0.00034246,120]
[339789231,1727987499733,-911.79,0.00034246,120]
[339789232,1727987499742,-817.82,0.00034246,120]
[339789233,1727987499753,-500.0,0.00034246,120]
[339789234,1727987499762,-500.0,0.00034246,120]
[339789235,1727987499771,-328.66788121,0.00034246,120]
[339789236,1727987499780,-1292.49,0.00034246,7]
[339789237,1727987499790,-517.59,0.00034246,120]
[339789238,1727987499799,-500.0,0.00034246,120]
[339789239,1727987499808,-500.0,0.00034246,120]
[339789240,1727987499818,-500.0,0.00034246,120]
[339789241,1727987499828,-309.66443144,0.00034246,120]
[339789242,1727987499837,-762.72,0.00034246,120]
[339789243,1727987499849,-1396.71,0.00034246,120]
[339789244,1727987499859,-1184.87,0.00034246,120]
[339789245,1727987499869,-1701.57,0.00034246,120]
[339789246,1727987499879,-714.2,0.00034246,120]
[339789247,1727987499890,-500.0,0.00034246,120]
[339789248,1727987499899,-500.0,0.00034246,120]
[339789249,1727987499909,-500.0,0.00034246,120]
[339789250,1727987499919,-676.51,0.00034246,120]
[339789251,1727987499929,-543.4,0.00034246,120]
[339789252,1727987499939,-1713.42,0.00034246,120]
[339789253,1727987499948,-615.69,0.00034246,120]
[339789254,1727987499958,-675.57,0.00034246,120]
[339789255,1727987499968,-822.0,0.00034246,120]
[339789256,1727987499977,-500.0,0.00034246,120]
[339789257,1727987499987,-781.4,0.00034246,120]
[339789258,1727987499997,-500.0,0.00034246,120]
[339789259,1727987500006,-747.69,0.00034246,120]
[339789260,1727987500017,-500.0,0.00034246,120]
[339789261,1727987500027,-500.0,0.00034246,120]
[339789262,1727987500037,-617.77,0.00034246,120]
[339789263,1727987500047,-911.34,0.00034246,120]
[339789264,1727987500056,-500.0,0.00034246,120]
[339789265,1727987500067,-500.0,0.00034246,120]
[339789266,1727987500077,-500.0,0.00034246,120]
[339789267,1727987500086,-500.0,0.00034246,120]
[339789268,1727987500096,-500.0,0.00034246,120]
[339789269,1727987500106,-1099.61,0.00034246,120]
[339789270,1727987500116,-500.0,0.00034246,120]
[339789271,1727987500126,-500.0,0.00034246,120]
[339789272,1727987500136,-1245.73,0.00034246,120]
[339789273,1727987500146,-605.0,0.00034246,120]
[339789274,1727987500156,-570.35,0.00034246,120]
[339789275,1727987500167,-614.52,0.00034246,120]
[339789276,1727987500177,-806.75,0.00034246,120]
[339789277,1727987500188,-761.4,0.00034246,120]
[339789278,1727987500198,-500.0,0.00034246,120]
[339789279,1727987500208,-500.0,0.00034246,120]
[339789280,1727987500217,-500.0,0.00034246,120]
[339789281,1727987500227,-1016.56,0.00034246,120]
[339789282,1727987500236,-500.0,0.00034246,120]
[339789283,1727987500246,-500.0,0.00034246,120]
[339789284,1727987500256,-330.67692766,0.00034246,120]
[339789285,1727987500266,-908.19,0.00034246,120]
[339789286,1727987500276,-425.91348525,0.00034246,120]
[339789287,1727987500285,-500.0,0.00034246,120]
[339789288,1727987500295,-650.02,0.00034246,120]
[339789289,1727987500305,-2907.54,0.00034246,120]
[339789290,1727987500314,-1955.84,0.00034246,120]
[339789291,1727987500325,-666.23,0.00034246,120]
[339789292,1727987500335,-500.0,0.00034246,5]
[339789293,1727987500345,-500.0,0.00034246,120]
[339789294,1727987500355,-1768.990651,0.00034246,7]
[339789295,1727987500364,-619.0,0.00034246,120]
[339789296,1727987500374,-1476.07,0.00034246,120]
[339789297,1727987500384,-1768.990651,0.00034246,7]
[339789298,1727987500394,-500.0,0.00034246,120]
[339789299,1727987500404,-200.0,0.00034246,7]
[339789300,1727987500415,-580.92,0.00034246,120]
[339789301,1727987500425,-664.13,0.00034246,120]
[339789302,1727987500435,-559.23,0.00034246,120]
[339789303,1727987500444,-500.0,0.00034246,120]
[339789304,1727987500454,-682.12,0.00034246,120]
[339789305,1727987500464,-662.07,0.00034246,120]
[339789306,1727987500473,-500.0,0.00034246,120]
[339789307,1727987500483,-500.0,0.00034246,120]
[339789308,1727987500492,-500.0,0.00034246,120]
[339789309,1727987500502,-1017.64,0.00034246,120]
[339789310,1727987500511,-1843.32,0.00034246,120]
[339789311,1727987500521,-929.85,0.00034246,120]
[339789312,1727987500530,-500.0,0.00034246,120]
[339789313,1727987500540,-903.96,0.00034246,120]
[339789314,1727987500550,-493.72080995,0.00034246,120]
[339789315,1727987500559,-1244.9,0.00034246,120]
[339789316,1727987500569,-2059.5,0.00034246,120]
[339789317,1727987500579,-1208.85,0.00034246,120]
[339789318,1727987500589,-500.0,0.00034246,120]
[339789319,1727987500599,-1392.18,0.00034246,120]
[339789320,1727987500609,-500.0,0.00034246,120]
[339789321,1727987500619,-1754.22,0.00034246,120]
[339789322,1727987500629,-500.0,0.00034246,120]
[339789323,1727987500639,-3096.26,0.00034246,120]
[339789324,1727987500649,-838.34,0.00034246,120]
[339789325,1727987500660,-500.0,0.00034246,120]
[339789326,1727987500670,-767.37,0.00034246,120]
[339789327,1727987500681,-500.0,0.00034246,120]
[339789328,1727987500691,-1262.93,0.00034246,120]
[339789329,1727987500701,-801.012603,0.00034246,7]
[339789330,1727987500711,-500.0,0.00034246,120]
[339789331,1727987500720,-900.49,0.00034246,120]
[339789332,1727987500730,-871.88,0.00034246,120]
[339789333,1727987500739,-801.012603,0.00034246,7]
[339789334,1727987500749,-546.33,0.00034246,120]
[339789335,1727987500758,-1915.72,0.00034246,120]
[339789336,1727987500767,-500.0,0.00034246,120]
[339789337,1727987500777,-542.05,0.00034246,120]
[339789338,1727987500786,-500.0,0.00034246,120]
[339789339,1727987500796,-1246.58,0.00034246,120]
[339789340,1727987500806,-755.2,0.00034246,120]
[339789341,1727987500815,-500.0,0.00034246,120]
[339789342,1727987500825,-515.39,0.00034246,120]
[339789343,1727987500837,-1449.61,0.00034246,120]
[339789344,1727987500851,-500.0,0.00034246,120]
[339789345,1727987500861,-615.97,0.00034246,120]
[339789346,1727987500871,-500.0,0.00034246,120]
[339789347,1727987500880,-500.0,0.00034246,120]
[339789348,1727987500891,-500.0,0.00034246,120]
[339789349,1727987500901,-828.98,0.00034246,120]
[339789350,1727987500912,-500.0,0.00034246,120]
[339789351,1727987500921,-522.48,0.00034246,120]
[339789352,1727987500933,-769.93,0.00034246,120]
[339789353,1727987500945,-500.0,0.00034246,120]
[339789354,1727987500956,-1535.42,0.00034246,120]
[339789355,1727987500967,-500.0,0.00034246,120]
[339789356,1727987500976,-692.01,0.00034246,120]
[339789357,1727987500986,-500.0,0.00034246,120]
[339789358,1727987500997,-500.0,0.00034246,120]
[339789359,1727987501006,-500.0,0.00034246,120]
[339789360,1727987501017,-617.57,0.00034246,120]
[339789361,1727987501026,-500.0,0.00034246,120]
[339789362,1727987501036,-500.0,0.00034246,120]
[339789363,1727987501046,-775.222596,0.00034246,7]
[339789364,1727987501056,-1322.47,0.00034246,120]
[339789365,1727987501066,-678.3,0.00034246,120]
[339789366,1727987501077,-3041.51,0.00034246,120]
[339789367,1727987501086,-1088.33,0.00034246,120]
[339789368,1727987501096,-685.28,0.00034246,120]
[339789369,1727987501106,-775.222596,0.00034246,7]
[339789370,1727987501116,-809.97,0.00034246,120]
[339789371,1727987501125,-617.35,0.00034246,120]
[339789372,1727987501135,-500.0,0.00034246,120]
[339789373,1727987501144,-500.0,0.00034246,120]
[339789374,1727987501154,-500.0,0.00034246,120]
[339789375,1727987501164,-504.49,0.00034246,120]
[339789376,1727987501174,-1000.0,0.00034246,120]
[339789377,1727987501183,-2582.55,0.00034246,14]
[339789378,1727987501194,-821.22,0.00034246,120]
[339789379,1727987501204,-2036.76,0.00034246,2]
[339789380,1727987501214,-500.0,0.00034246,120]
[339789381,1727987501224,-752.83,0.00034246,120]
[339789382,1727987501233,-1192.92,0.00034246,120]
[339789383,1727987501243,-500.0,0.00034246,120]
[339789384,1727987501253,-500.0,0.00034246,120]
[339789385,1727987501263,-10000.0,0.00034246,7]
[339789386,1727987501273,-1822.29,0.00034246,120]
[339789387,1727987501283,-696.33,0.00034246,120]
[339789388,1727987501292,-500.0,0.00034246,120]
[339789389,1727987501302,-2184.089244,0.00034246,7]
[339789390,1727987501582,-1595.23,0.00034246,120]
[339789391,1727987501595,-1676.96,0.00034246,120]
[339789392,1727987501607,-500.0,0.00034246,120]
[339789393,1727987501617,-602.51,0.00034246,120]
[339789394,1727987501626,-2184.089244,0.00034246,7]
[339789395,1727987501637,-1430.65,0.00034246,120]
[339789396,1727987501647,-500.0,0.00034246,120]
[339789397,1727987501656,-10000.0,0.00034246,7]
[339789398,1727987501667,-500.0,0.00034246,120]
[339789399,1727987501676,-1022.58,0.00034246,120]
[339789400,1727987501686,-10000.0,0.00034246,7]
[339789401,1727987501696,-534.34,0.00034246,120]
[339789402,1727987501707,-572.51,0.00034246,120]
[339789403,1727987501718,-500.0,0.00034246,120]
[339789404,1727987501727,-500.0,0.00034246,120]
[339789405,1727987501737,-743.36,0.00034246,120]
[339789406,1727987501746,-722.75,0.00034246,120]
[339789407,1727987501756,-10000.0,0.00034246,7]
[339789408,1727987501765,-500.0,0.00034246,120]
[339789409,1727987501774,-2933.87,0.00034246,120]
[339789410,1727987501784,-891.75,0.00034246,120]
[339789411,1727987501793,-500.0,0.00034246,120]
[339789412,1727987501802,-734.12,0.00034246,120]
[339789413,1727987501812,-10000.0,0.00034246,7]
[339789414,1727987501821,-500.0,0.00034246,120]
[339789415,1727987501831,-500.0,0.00034246,120]
[339789416,1727987501840,-500.0,0.00034246,120]
[339789417,1727987501853,-500.0,0.00034246,120]
[339789418,1727987501863,-830.44,0.00034246,120]
[339789419,1727987501872,-2001.996156,0.00034246,7]
[339789420,1727987501881,-2736.92,0.00034246,120]
[339789421,1727987501893,-2840.63,0.00034246,120]
[339789422,1727987501902,-1668.6,0.00034246,120]
[339789423,1727987501911,-963.2,0.00034246,120]
[339789424,1727987501921,-500.0,0.00034246,120]
[339789425,1727987501932,-3064.64,0.00034246,120]
[339789426,1727987501942,-500.0,0.00034246,120]
[339789427,1727987501951,-500.0,0.00034246,120]
[339789428,1727987501961,-500.0,0.00034246,120]
[339789429,1727987501971,-895.53,0.00034246,120]
[339789430,1727987501980,-500.0,0.00034246,120]
[339789431,1727987501989,-594.854743,0.00034246,7]
[339789432,1727987501998,-603.25,0.00034246,120]
[339789433,1727987502007,-893.66,0.00034246,120]
[339789434,1727987502017,-1265.22,0.00034246,120]
[339789435,1727987502026,-648.93,0.00034246,120]
[339789436,1727987502036,-702.69,0.00034246,120]
[339789437,1727987502045,-594.854743,0.00034246,7]
[339789438,1727987502055,-912.75,0.00034246,120]
[339789439,1727987502064,-500.0,0.00034246,120]
[339789440,1727987502073,-625.95,0.00034246,120]
[339789441,1727987502083,-500.0,0.00034246,120]
[339789442,1727987502092,-500.0,0.00034246,120]
[339789443,1727987502101,-500.0,0.00034246,120]
[339789444,1727987502111,-500.0,0.00034246,120]
[339789445,1727987502120,-268.76034252,0.00034246,120]
[339789446,1727987502130,-589.87,0.00034246,120]
[339789447,1727987502139,-500.0,0.00034246,120]
[339789448,1727987502150,-904.15,0.00034246,120]
[339789449,1727987502160,-809.38,0.00034246,120]
[339789450,1727987502180,-500.0,0.00034246,120]
[339789451,1727987502189,-500.0,0.00034246,120]
[339789452,1727987502199,-1583.67,0.00034246,120]
[339789453,1727987502209,-500.0,0.00034246,120]
[339789454,1727987502219,-2849.48,0.00034246,120]
[339789455,1727987502228,-1559.78,0.00034246,120]
[339789456,1727987502237,-577.79388947,0.00034246,2]
[339789457,1727987502247,-526.9,0.00034246,120]
[339789458,1727987502256,-500.0,0.00034246,120]
[339789459,1727987502266,-522.66,0.00034246,120]
[339789460,1727987502275,-887.97,0.00034246,120]
[339789461,1727987502285,-608.69,0.00034246,120]
[339789462,1727987502294,-1196.23,0.00034246,120]
[339789463,1727987502303,-500.0,0.00034246,120]
[339789464,1727987502313,-1435.23,0.00034246,120]
[339789465,1727987502323,-871.817102,0.00034246,7]
[339789466,1727987502332,-1891.17,0.00034246,120]
[339789467,1727987502342,-151.0,0.00034246,7]
[339789468,1727987502351,-734.62,0.00034246,120]
[339789469,1727987502361,-500.0,0.00034246,5]
[339789470,1727987502371,-1907.44,0.00034246,120]
[339789471,1727987502381,-871.817102,0.00034246,7]
[339789472,1727987502390,-954.92,0.00034246,30]
[339789473,1727987502400,-760.37,0.00034246,120]
[339789474,1727987502411,-500.0,0.00034246,120]
[339789475,1727987502421,-1267.83,0.00034246,120]
[339789476,1727987502431,-1389.631609,0.00034246,7]
[339789477,1727987502442,-500.0,0.00034246,120]
[339789478,1727987502451,-500.0,0.00034246,120]
[339789479,1727987502460,-3152.28,0.00034246,120]
[339789480,1727987502469,-1389.631609,0.00034246,7]
[339789481,1727987502479,-2240.67,0.00034246,120]
[339789482,1727987502488,-500.0,0.00034246,120]
[339789483,1727987502498,-692.31,0.00034246,120]
[339789484,1727987502507,-4273.85,0.00034246,2]
[339789485,1727987502516,-500.0,0.00034246,120]
[339789486,1727987502526,-566.42,0.00034246,120]
[339789487,1727987502535,-500.0,0.00034246,120]
[339789488,1727987502544,-1375.15,0.00034246,120]
[339789489,1727987502554,-1352.94,0.00034246,120]
[339789490,1727987502563,-2143.59,0.00034246,120]
[339789491,1727987502572,-197.419055,0.00034246,7]
[339789492,1727987502582,-500.0,0.00034246,120]
[339789493,1727987502591,-301.06170708,0.00034246,120]
[339789494,1727987502600,-500.0,0.00034246,120]
[339789495,1727987502609,-500.0,0.00034246,120]
[339789496,1727987502619,-197.419055,0.00034246,7]
[339789497,1727987502628,-366.010612,0.00034246,7]
[339789498,1727987502637,-2552.25,0.00034246,120]
[339789499,1727987502646,-807.0,0.00034246,120]
[339789500,1727987502655,-1929.43,0.00034246,120]
[339789501,1727987502674,-500.0,0.00034246,120]
[339789502,1727987502683,-687.7,0.00034246,120]
[339789503,1727987502692,-500.0,0.00034246,120]
[339789504,1727987502701,-366.010612,0.00034246,7]
[339789505,1727987502711,-500.0,0.00034246,120]
[339789506,1727987502720,-685.66,0.00034246,120]
[339789507,1727987502729,-500.0,0.00034246,120]
[339789508,1727987502739,-500.0,0.00034246,120]
[339789509,1727987502748,-500.0,0.00034246,120]
[339789510,1727987502757,-500.0,0.00034246,120]
[339789511,1727987502767,-426.78146,0.00034246,7]
[339789512,1727987502776,-1124.73,0.00034246,120]
[339789513,1727987502785,-500.0,0.00034246,120]
[339789514,1727987502795,-687.49,0.00034246,120]
[339789515,1727987502804,-426.78146,0.00034246,7]
[339789516,1727987502813,-1267.04,0.00034246,120]
[339789517,1727987502823,-1073.96,0.00034246,120]
[339789518,1727987502832,-515.88,0.00034246,120]
[339789519,1727987502842,-498.69132494,0.00034246,120]
[339789520,1727987502855,-924.47,0.00034246,120]
[339789521,1727987502865,-3842.317748,0.00034246,7]
[339789522,1727987502874,-500.0,0.00034246,120]
[339789523,1727987502884,-500.0,0.00034246,120]
[339789524,1727987502895,-500.0,0.00034246,120]
[339789525,1727987502904,-3529.62,0.00034246,120]
[339789526,1727987502915,-3842.317748,0.00034246,7]
[339789527,1727987502925,-500.0,0.00034246,120]
[339789528,1727987502935,-2122.92,0.00034246,120]
[339789529,1727987502945,-500.0,0.00034246,120]
[339789530,1727987502955,-1443.8,0.00034246,120]
[339789531,1727987502964,-269.16279054,0.00034246,120]
[339789532,1727987502974,-598.1,0.00034246,120]
[339789533,1727987502983,-583.93,0.00034246,120]
[339789534,1727987502993,-1130.17,0.00034246,120]
[339789535,1727987503002,-500.0,0.00034246,120]
[339789536,1727987503011,-500.0,0.00034246,120]
[339789537,1727987503021,-500.0,0.00034246,120]
[339789538,1727987503030,-512.25,0.00034246,120]
[339789539,1727987503039,-739.66,0.00034246,120]
[339789540,1727987503048,-2221.7,0.00034246,120]
[339789541,1727987503057,-500.0,0.00034246,120]
[339789542,1727987503067,-500.0,0.00034246,120]
[339789543,1727987503077,-500.0,0.00034246,120]
[339789544,1727987503086,-500.0,0.00034246,120]
[339789545,1727987503095,-878.47,0.00034246,120]
[339789546,1727987503105,-753.47,0.00034246,120]
[339789547,1727987503114,-2105.23,0.00034246,120]
[339789548,1727987503123,-500.0,0.00034246,120]
[339789549,1727987503132,-500.0,0.00034246,120]
[339789550,1727987503142,-880.23,0.00034246,120]
[339789551,1727987503151,-1101.24,0.00034246,120]
[339789552,1727987503161,-500.0,0.00034246,120]
[339789553,1727987503171,-1000.0,0.00034246,120]
[339789554,1727987503180,-594.49,0.00034246,120]
[339789555,1727987503189,-500.0,0.00034246,120]
[339789556,1727987503198,-500.0,0.00034246,120]
[339789557,1727987503208,-1746.33,0.00034246,120]
[339789558,1727987503217,-500.0,0.00034246,120]
[339789559,1727987503226,-983.59,0.00034246,120]
[339789560,1727987503235,-754.45,0.00034246,120]
[339789561,1727987503244,-1535.26,0.00034246,120]
[339789562,1727987503254,-889.14,0.00034246,120]
[339789563,1727987503263,-3156.06,0.00034246,120]
[339789564,1727987503272,-423.58475089,0.00034246,120]
[339789565,1727987503281,-2375.19,0.00034246,120]
[339789566,1727987503291,-500.0,0.00034246,120]
[339789567,1727987503300,-640.32,0.00034246,120]
[339789568,1727987503310,-500.0,0.00034246,120]
[339789569,1727987503319,-500.0,0.00034246,120]
[339789570,1727987503329,-2171.15,0.00034246,120]
[339789571,1727987503338,-580.84,0.00034246,120]
[339789572,1727987503348,-652.15,0.00034246,120]
[339789573,1727987503357,-970.9,0.00034246,120]
[339789574,1727987503367,-500.0,0.00034246,120]
[339789575,1727987503376,-576.98,0.00034246,120]
[339789576,1727987503385,-2322.76,0.00034246,120]
[339789577,1727987503394,-500.0,0.00034246,120]
[339789578,1727987503403,-500.0,0.00034246,120]
[339789579,1727987503412,-2446.1,0.00034246,120]
[339789580,1727987503422,-500.0,0.00034246,120]
[339789581,1727987503432,-569.39,0.00034246,120]
[339789582,1727987503441,-500.0,0.00034246,120]
[339789583,1727987503450,-865.83,0.00034246,120]
[339789584,1727987503459,-500.0,0.00034246,120]
[339789585,1727987503468,-500.0,0.00034246,120]
[339789586,1727987503478,-559.14,0.00034246,120]
[339789587,1727987503486,-526.15,0.00034246,120]
[339789588,1727987503495,-500.0,0.00034246,120]
[339789589,1727987503504,-500.0,0.00034246,120]
[339789590,1727987503514,-500.0,0.00034246,120]
[339789591,1727987503523,-500.0,0.00034246,120]
[339789592,1727987503532,-1022.47,0.00034246,120]
[339789593,1727987503541,-500.0,0.00034246,120]
[339789594,1727987503550,-1404.02,0.00034246,120]
[339789595,1727987503560,-500.0,0.00034246,120]
[339789596,1727987503569,-641.91,0.00034246,120]
[339789597,1727987503579,-500.0,0.00034246,120]
[339789598,1727987503588,-926.29,0.00034246,120]
[339789599,1727987503597,-2021.14,0.00034246,120]
[339789600,1727987503606,-796.9,0.00034246,120]
[339789601,1727987503615,-500.0,0.00034246,120]